fUSD/lending_fUSD_20260427
["ID","MTS","AMOUNT","RATE_DAILY","PERIOD"]
[421190494,1777225873404,-220.70012533,0.0003562,30]
[421190495,1777225873413,-3000.0,0.00035625,21]
[421190496,1777225873422,-2800.0,0.00035625,21]
[421190498,1777225873432,-411.43374201,0.00035662,120]
[421190499,1777225873441,-304.0346395,0.00035684,60]
[421190500,1777225873451,-411.43374201,0.00035756,120]
[421190501,1777225873461,-5000.0,0.00035792,15]
[421190502,1777225873474,-150.60064818,0.000358,30]
[421190503,1777225873483,-504.0,0.00035824,8]
[421190504,1777225873494,-1574.0,0.00035831,11]
[421190505,1777225873504,-162.0,0.00035831,11]
[421190506,1777225873514,-411.43374201,0.00035851,120]
[421190507,1777225873524,-170.5,0.000359,120]
[421190508,1777225873533,-1836.10279011,0.000359,120]
[421190509,1777225873542,-191.67297374,0.000359,120]
[421190510,1777225873552,-868.5754963,0.000359,120]
[421190511,1777225873562,-1208.3276835,0.000359,120]
[421190512,1777225873571,-1061.35600253,0.000359,120]
[421190513,1777225873580,-171.99254843,0.000359,120]
[421190514,1777225873590,-841.34726371,0.000359,120]
[421190515,1777225873599,-706.94505282,0.000359,120]
[421190516,1777225873608,-575.47289118,0.000359,120]
[421190517,1777225873618,-809.22864547,0.000359,120]
[421190518,1777225873627,-1940.81596288,0.000359,120]
[421190519,1777225873636,-1763.80637438,0.000359,120]
[421190520,1777225873646,-1390.44371991,0.000359,120]
[421190521,1777225873655,-411.43374201,0.00035945,120]
[421190522,1777225873665,-411.43374193,0.00035945,120]
[421190523,1777225873674,-411.43374201,0.00035945,120]
[421190524,1777225873683,-2000.0,0.00035948,120]
[421190525,1777225873692,-752.57839717,0.00036,120]
[421190526,1777225873701,-500.0,0.00036,120]
[421190527,1777225873711,-57983.84,0.00036,7]
[421190528,1777225873720,-300.0,0.00036137,2]
[421190529,1777225873730,-300.0,0.00036137,2]
[421190530,1777225873739,-300.0,0.00036137,2]
[421190531,1777225873748,-300.0,0.00036137,2]
[421190532,1777225873758,-300.0,0.00036137,2]
[421190533,1777225873767,-300.0,0.00036137,2]
[421190534,1777225873776,-300.0,0.00036137,2]
[421190535,1777225873786,-300.0,0.00036137,2]
[421190536,1777225873795,-300.0,0.00036137,2]
[421190537,1777225873804,-300.0,0.00036137,2]
[421190538,1777225873812,-300.0,0.00036137,2]
[421190539,1777225873821,-300.0,0.00036137,2]
[421190540,1777225873831,-300.0,0.00036137,2]
[421190541,1777225873840,-300.0,0.00036137,2]
[421190542,1777225873849,-300.0,0.00036137,2]
[421190543,1777225873858,-300.0,0.00036137,2]
[421190544,1777225873867,-300.0,0.00036137,2]
[421190545,1777225873877,-300.0,0.00036137,2]
[421190546,1777225873886,-300.0,0.00036137,2]
[421190547,1777225873896,-300.0,0.00036137,2]
[421190548,1777225873906,-300.0,0.00036137,2]
[421190549,1777225873916,-300.0,0.00036137,2]
[421190550,1777225873926,-300.0,0.00036137,2]
[421190551,1777225873935,-300.0,0.00036137,2]
[421190552,1777225873946,-300.0,0.00036137,2]
[421190553,1777225873955,-300.0,0.00036137,2]
[421190554,1777225873965,-300.0,0.00036137,2]
[421190555,1777225873976,-300.0,0.00036137,2]
[421190556,1777225874087,-300.0,0.00036137,2]
[421190557,1777225874096,-300.0,0.00036137,2]
[421190558,1777225874106,-300.0,0.00036137,2]
[421190559,1777225874115,-300.0,0.00036137,2]
[421190560,1777225874124,-300.0,0.00036137,2]
[421190561,1777225874133,-300.0,0.00036137,2]
[421190562,1777225874143,-300.0,0.00036137,2]
[421190563,1777225874152,-300.0,0.00036137,2]
[421190564,1777225874162,-300.0,0.00036137,2]
[421190565,1777225874172,-300.0,0.00036137,2]
[421190566,1777225874182,-300.0,0.00036137,2]
[421190567,1777225874192,-300.0,0.00036137,2]
[421190568,1777225874202,-300.0,0.00036137,2]
[421190569,1777225874211,-300.0,0.00036137,2]
[421190570,1777225874221,-300.0,0.00036137,2]
[421190571,1777225874231,-300.0,0.00036137,2]
[421190572,1777225874240,-300.0,0.00036137,2]
[421190573,1777225874249,-300.0,0.00036137,2]
[421190574,1777225874259,-300.0,0.00036137,2]
[421190575,1777225874268,-300.0,0.00036137,2]
[421190576,1777225874278,-300.0,0.00036137,2]
[421190577,1777225874288,-300.0,0.00036137,2]
[421190578,1777225874298,-300.0,0.00036137,2]
[421190579,1777225874307,-152.0,0.00036154,12]
[421190580,1777225874317,-307.0,0.00036164,2]
[421190581,1777225874327,-307.0,0.00036164,2]
[421190582,1777225874337,-307.0,0.00036164,2]
[421190583,1777225874347,-307.0,0.00036164,2]
[421190584,1777225874356,-307.0,0.00036164,2]
[421190585,1777225874366,-307.0,0.00036164,2]
[421190586,1777225874375,-307.0,0.00036164,2]
[421190587,1777225874384,-307.0,0.00036164,2]
[421190588,1777225874393,-307.0,0.00036164,2]
[421190589,1777225874402,-307.0,0.00036164,2]
[421190590,1777225874412,-307.0,0.00036164,2]
[421190591,1777225874421,-307.0,0.00036164,2]
[421190592,1777225874430,-307.0,0.00036164,2]
[421190593,1777225874439,-307.0,0.00036164,2]
[421190594,1777225874449,-307.0,0.00036164,2]
[421190595,1777225874458,-307.0,0.00036164,2]
[421190596,1777225874467,-307.0,0.00036164,2]
[421190597,1777225874476,-307.0,0.00036164,2]
[421190598,1777225874485,-307.0,0.00036164,2]
[421190599,1777225874494,-307.0,0.00036164,2]
[421190600,1777225874503,-307.0,0.00036164,2]
[421190601,1777225874512,-307.0,0.00036164,2]
[421190602,1777225874522,-307.0,0.00036164,2]
[421190603,1777225874531,-307.0,0.00036164,2]
[421190604,1777225874539,-307.0,0.00036164,2]
[421190605,1777225874548,-307.0,0.00036164,2]
[421190606,1777225874557,-307.0,0.00036164,2]
[421190607,1777225874567,-307.0,0.00036164,2]
[421190608,1777225874577,-307.0,0.00036164,2]
[421190609,1777225874586,-307.0,0.00036164,2]
[421190610,1777225874595,-307.0,0.00036164,2]
[421190611,1777225874604,-307.0,0.00036164,2]
[421190612,1777225874613,-307.0,0.00036164,2]
[421190613,1777225874622,-307.0,0.00036164,2]
[421190614,1777225874631,-307.0,0.00036164,2]
[421190615,1777225874640,-307.0,0.00036164,2]
[421190616,1777225874650,-307.0,0.00036164,2]
[421190617,1777225874659,-307.0,0.00036164,2]
[421190618,1777225874668,-307.0,0.00036164,2]
[421190619,1777225874678,-307.0,0.00036164,2]
[421190620,1777225874686,-307.0,0.00036164,2]
[421190621,1777225874695,-307.0,0.00036164,2]
[421190622,1777225874704,-307.0,0.00036164,2]
[421190623,1777225874713,-307.0,0.00036164,2]
[421190624,1777225874722,-307.0,0.00036164,2]
[421190625,1777225874731,-307.0,0.00036164,2]
[421190626,1777225874741,-307.0,0.00036164,2]
[421190627,1777225874750,-307.0,0.00036164,2]
[421190628,1777225874759,-280.0,0.00036221,40]
[421190629,1777225874768,-200.0,0.000363,14]
[421190630,1777225874778,-557.19,0.0003631,120]
[421190631,1777225874787,-151.64813378,0.00036384,30]
[421190632,1777225874796,-600.0,0.00036438,5]
[421190633,1777225874806,-3000.0,0.00036447,21]
[421190634,1777225874815,-150.1562956,0.00036491,30]
[421190635,1777225874824,-408.0,0.00036493,30]
[421190636,1777225874833,-580.0,0.00036493,30]
[421190637,1777225874842,-613.0,0.00036493,30]
[421190638,1777225874851,-200.0,0.00036493,30]
[421190639,1777225874860,-202.0,0.00036494,30]
[421190640,1777225874869,-836.0,0.00036494,30]
[421190641,1777225874879,-309.0,0.00036494,30]
[421190642,1777225874888,-294.0,0.00036494,30]
[421190643,1777225874899,-351.0,0.00036494,30]
[421190644,1777225874909,-266.66774782,0.00036497,30]
[421190645,1777225874919,-150.0,0.00036498,30]
[421190646,1777225874930,-150.0,0.00036498,30]
[421190647,1777225874941,-500.987518,0.00036499,120]
[421190648,1777225874950,-570.0,0.00036531,30]
[421190649,1777225874959,-2000.0,0.00036595,120]
[421190650,1777225874970,-2000.0,0.00036595,120]
[421190651,1777225874981,-165.84,0.00036595,75]
[421190652,1777225875002,-250.0,0.000366,30]
[421190653,1777225875013,-504.0,0.00036673,9]
[421190654,1777225875029,-200.2941,0.000367,60]
[421190655,1777225875059,-229.74048036,0.00036767,17]
[421190656,1777225875071,-500.0,0.00036788,120]
[421190657,1777225875089,-2000.0,0.000368,120]
[421190658,1777225875107,-1630.49494288,0.000368,2]
[421190659,1777225875120,-208.0,0.0003689,30]
[421190660,1777225875132,-2000.0,0.00036894,120]
[421190661,1777225875146,-162.0,0.00036896,11]
[421190662,1777225875156,-162.0,0.00036896,11]
[421190663,1777225875165,-2000.0,0.00036896,120]
[421190664,1777225875174,-1818.36277191,0.000369,120]
[421190665,1777225875185,-407.0,0.00036937,30]
[421190666,1777225875194,-396.0,0.00036937,30]
[421190667,1777225875206,-833.92535153,0.0003699,2]
[421190668,1777225875215,-500.0,0.00036995,21]
[421190669,1777225875225,-2000.0,0.00037,120]
[421190670,1777225875236,-365.0,0.00037,2]
[421190671,1777225875245,-167.71219375,0.00037,2]
[421190672,1777225875255,-1003.08264981,0.00037,2]
[421190673,1777225875264,-1836.10279011,0.00037,120]
[421190674,1777225875274,-191.67297374,0.00037,120]
[421190675,1777225875282,-868.5754963,0.00037,120]
[421190676,1777225875292,-1208.3276835,0.00037,120]
[421190677,1777225875301,-1061.35600253,0.00037,120]
[421190678,1777225875311,-171.99254843,0.00037,120]
[421190679,1777225875322,-841.34726371,0.00037,120]
[421190680,1777225875331,-706.94505282,0.00037,120]
[421190681,1777225875341,-575.47289118,0.00037,120]
[421190682,1777225875352,-809.22864547,0.00037,120]
[421190683,1777225875361,-1940.81596288,0.00037,120]
[421190684,1777225875371,-1763.80637438,0.00037,120]
[421190685,1777225875380,-1390.44371991,0.00037,120]
[421190686,1777225875389,-1500.0,0.00037,120]
[421190687,1777225875398,-7979.43,0.00037,14]
[421190688,1777225875408,-5000.0,0.00037032,15]
[421190689,1777225875417,-1156.41848616,0.00037067,30]
[421190690,1777225875426,-2000.0,0.00037163,120]
[421190691,1777225875435,-2000.0,0.00037192,120]
[421190692,1777225875443,-214.10672339,0.00037199,2]
[421190693,1777225875453,-557.19,0.0003721,45]
[421190694,1777225875462,-162.0,0.00037233,11]
[421190695,1777225875472,-152.0,0.00037249,13]
[421190696,1777225875481,-379.55667253,0.00037255,120]
[421190697,1777225875490,-500.0,0.0003726,120]
[421190698,1777225875500,-900.0,0.0003726,5]
[421190699,1777225875511,-3000.0,0.00037269,21]
[421190700,1777225875522,-2800.0,0.00037269,21]
[421190701,1777225875531,-4072.5,0.00037295,30]
[421190702,1777225875540,-150.0,0.00037298,2]
[421190703,1777225875550,-200.0,0.000373,15]
[421190704,1777225875559,-162.0,0.00037321,11]
[421190705,1777225875569,-200.0,0.000374,5]
[421190706,1777225875579,-210.13546521,0.00037453,120]
[421190707,1777225875589,-212.85374021,0.00037453,120]
[421190708,1777225875598,-400.0,0.00037471,2]
[421190709,1777225875609,-400.0,0.00037471,2]
[421190710,1777225875619,-400.0,0.00037471,2]
[421190711,1777225875628,-250.0,0.00037474,60]
[421190712,1777225875637,-200.0,0.00037478,5]
[421190713,1777225875646,-200.0,0.00037478,5]
[421190714,1777225875655,-200.0,0.00037478,5]
[421190715,1777225875665,-200.0,0.00037478,5]
[421190716,1777225875674,-500.0,0.00037482,30]
[421190717,1777225875683,-500.0,0.00037482,30]
[421190718,1777225875692,-290.6,0.00037482,30]
[421190719,1777225875701,-2000.0,0.00037491,120]
[421190720,1777225875711,-216.24,0.00037493,30]
[421190721,1777225875720,-408.0,0.00037493,30]
[421190722,1777225875730,-580.0,0.00037493,30]
[421190723,1777225875739,-613.0,0.00037493,30]
[421190724,1777225875748,-200.0,0.00037493,30]
[421190725,1777225875758,-202.0,0.00037494,30]
[421190726,1777225875768,-836.0,0.00037494,30]
[421190727,1777225875777,-309.0,0.00037494,30]
[421190728,1777225875787,-294.0,0.00037494,30]
[421190729,1777225875796,-351.0,0.00037494,30]
[421190730,1777225875805,-405.45,0.000375,2]
[421190731,1777225875814,-303.32,0.000375,2]
[421190732,1777225875824,-850.51,0.000375,2]
[421190733,1777225875833,-3414.79,0.000375,2]
[421190734,1777225875842,-1365.92,0.000375,2]
[421190735,1777225875851,-1500.0,0.000375,120]
[421190736,1777225875861,-273.18,0.000375,2]
[421190737,1777225875870,-8010.1,0.000375,2]
[421190738,1777225875880,-4091.83,0.000375,2]
[421190739,1777225875890,-4800.6,0.000375,2]
[421190740,1777225875899,-504.0,0.00037523,10]
[421190741,1777225875909,-570.0,0.00037531,30]
[421190742,1777225875918,-500.0,0.00037671,120]
[421190743,1777225875927,-1025.90403001,0.00037671,60]
[421190744,1777225875936,-957.93641364,0.00037671,60]
[421190745,1777225875945,-3388.0,0.00037671,60]
[421190746,1777225875955,-584.41497713,0.00037671,60]
[421190747,1777225875964,-288.59776263,0.00037685,46]
[421190748,1777225875974,-502.7410542,0.00037685,46]
[421190749,1777225875983,-2000.0,0.0003773,120]
[421190750,1777225875992,-2000.0,0.0003779,120]
[421190752,1777225876002,-2000.0,0.000378,30]
[421190753,1777225876011,-200.99,0.00037808,60]
[421190754,1777225876020,-1577.0,0.00037836,11]
[421190755,1777225876030,-2000.0,0.00037845,120]
[421190756,1777225876039,-162.0,0.00037856,11]
[421190757,1777225876049,-1577.0,0.00037873,11]
[421190758,1777225876059,-204.74808007,0.0003788,2]
[421190759,1777225876068,-2286.52,0.000379,120]
[421190760,1777225876077,-462.9411,0.000379,120]
[421190761,1777225876085,-304.74279526,0.00037906,105]
[421190762,1777225876095,-830.32816648,0.00037945,30]
[421190763,1777225876104,-1270.64,0.00037962,7]
[421190764,1777225876113,-689.51,0.00037962,7]
[421190765,1777225876122,-170.379637,0.00037964,23]
[421190766,1777225876131,-352.579998,0.00038,2]
[421190767,1777225876140,-900.0,0.00038,120]
[421190768,1777225876150,-400000.0,0.00038,120]
[421190769,1777225876159,-220.72382008,0.00038,7]
[421190770,1777225876168,-6000.0,0.00038,14]
[421190771,1777225876177,-2000.0,0.00038,120]
[421190772,1777225876186,-1872.78441091,0.00038,120]
[421190773,1777225876195,-500.0,0.00038,120]
[421190774,1777225876204,-5061.0,0.00038,30]
[421190775,1777225876213,-1500.41489369,0.00038,120]
[421190776,1777225876222,-2000.0,0.00038,120]
[421190777,1777225876231,-1344.0,0.00038001,2]
[421190778,1777225876240,-1048.0,0.00038001,2]
[421190779,1777225876249,-1266.0,0.00038001,2]
[421190780,1777225876258,-927.0,0.00038001,2]
[421190781,1777225876267,-2475.0,0.00038001,2]
[421190782,1777225876276,-250.0,0.00038019,60]
[421190783,1777225876286,-20188.3,0.00038034,30]
[421190784,1777225876296,-200.0,0.00038042,48]
[421190785,1777225876305,-520.0,0.00038042,48]
[421190786,1777225876315,-2818.0,0.00038043,11]
[421190787,1777225876327,-812.0,0.00038043,11]
[421190788,1777225876336,-5000.0,0.00038073,15]
[421190789,1777225876345,-500.0,0.00038082,120]
[421190790,1777225876355,-830.32816648,0.00038082,30]
[421190791,1777225876365,-1200.0,0.00038082,5]
[421190792,1777225876374,-2000.0,0.00038088,120]
[421190793,1777225876384,-3000.0,0.00038091,21]
[421190794,1777225876393,-16222.64900825,0.000381,33]
[421190795,1777225876402,-580.407484,0.000381,33]
[421190796,1777225876410,-1208.3276835,0.000381,120]
[421190797,1777225876421,-1763.80637438,0.000381,120]
[421190798,1777225876431,-557.19,0.0003812,87]
[421190799,1777225876443,-1103.7,0.00038179,30]
[421190800,1777225876453,-830.32816648,0.00038247,30]
[421190801,1777225876462,-162.0,0.00038281,11]
[421190802,1777225876471,-1577.0,0.00038281,11]
[421190803,1777225876481,-1577.0,0.00038281,11]
[421190804,1777225876491,-2000.0,0.00038298,120]
[421190805,1777225876500,-2342.55954153,0.00038298,2]
[421190806,1777225876509,-200.0,0.000383,15]
[421190807,1777225876519,-1063.56765102,0.00038329,120]
[421190808,1777225876528,-770.09167789,0.00038329,120]
[421190809,1777225876537,-152.0,0.00038344,14]
[421190810,1777225876546,-150.0,0.00038355,2]
[421190811,1777225876555,-152.74666324,0.00038356,30]
[421190812,1777225876564,-150.0,0.00038356,120]
[421190813,1777225876573,-500.0,0.00038356,2]
[421190814,1777225876582,-500.0,0.00038356,2]
[421190815,1777225876591,-500.0,0.00038356,2]
[421190816,1777225876600,-500.0,0.00038356,2]
[421190817,1777225876610,-500.0,0.00038356,2]
[421190818,1777225876619,-500.0,0.00038356,2]
[421190819,1777225876628,-156.47575255,0.00038356,2]
[421190820,1777225876638,-500.0,0.00038356,2]
[421190821,1777225876647,-500.0,0.00038356,2]
[421190822,1777225876656,-500.0,0.00038356,2]
[421190823,1777225876665,-500.0,0.00038356,2]
[421190824,1777225876674,-500.0,0.00038356,2]
[421190825,1777225876683,-500.0,0.00038356,2]
[421190826,1777225876692,-500.0,0.00038356,2]
[421190827,1777225876701,-500.0,0.00038356,2]
[421190828,1777225876710,-500.0,0.00038356,2]
[421190829,1777225876720,-500.0,0.00038356,2]
[421190830,1777225876728,-196.70596771,0.00038356,2]
[421190831,1777225876737,-500.0,0.00038356,2]
[421190832,1777225876746,-500.0,0.00038356,2]
[421190833,1777225876756,-500.0,0.00038356,2]
[421190834,1777225876766,-500.0,0.00038356,2]
[421190835,1777225876776,-500.0,0.00038356,2]
[421190836,1777225876786,-200.0,0.00038356,2]
[421190837,1777225876795,-500.0,0.00038356,2]
[421190838,1777225876805,-500.0,0.00038356,2]
[421190839,1777225876814,-500.0,0.00038356,2]
[421190840,1777225876824,-500.0,0.00038356,2]
[421190841,1777225876834,-500.0,0.00038356,2]
[421190842,1777225876844,-500.0,0.00038356,2]
[421190843,1777225876856,-276.49795588,0.00038356,2]
[421190844,1777225876867,-300.0,0.00038356,2]
[421190845,1777225876876,-300.0,0.00038356,2]
[421190846,1777225876886,-300.0,0.00038356,2]
[421190847,1777225876896,-300.0,0.00038356,2]
[421190848,1777225876907,-300.0,0.00038356,2]
[421190849,1777225876918,-300.0,0.00038356,2]
[421190850,1777225876928,-300.0,0.00038356,2]
[421190851,1777225876937,-300.0,0.00038356,2]
[421190852,1777225876947,-300.0,0.00038356,2]
[421190853,1777225876956,-300.0,0.00038356,2]
[421190854,1777225876965,-300.0,0.00038356,2]
[421190855,1777225876975,-300.0,0.00038356,2]
[421190856,1777225876984,-300.0,0.00038356,2]
[421190857,1777225876994,-444.45484804,0.00038356,2]
[421190858,1777225877003,-191.98,0.00038356,15]
[421190859,1777225877012,-191.98,0.00038356,15]
[421190860,1777225877021,-192.0,0.00038356,15]
[421190861,1777225877031,-265.76,0.00038356,15]
[421190862,1777225877040,-188.94,0.00038356,15]
[421190863,1777225877049,-188.94,0.00038356,15]
[421190864,1777225877063,-188.95,0.00038356,15]
[421190865,1777225877072,-195.13,0.00038356,15]
[421190866,1777225877083,-192.8,0.00038356,15]
[421190867,1777225877093,-172.24,0.00038356,15]
[421190868,1777225877103,-173.19,0.00038356,15]
[421190869,1777225877112,-173.2,0.00038356,15]
[421190870,1777225877121,-190.33,0.00038356,15]
[421190871,1777225877131,-247.78,0.00038356,15]
[421190872,1777225877140,-191.63135626,0.00038356,30]
[421190873,1777225877149,-151.0,0.00038356,30]
[421190874,1777225877159,-151.0,0.00038356,30]
[421190875,1777225877169,-151.0,0.00038356,30]
[421190876,1777225877179,-151.0,0.00038356,30]
[421190877,1777225877188,-151.0,0.00038356,30]
[421190878,1777225877198,-245.322516,0.00038356,30]
[421190879,1777225877207,-418.33358006,0.00038356,2]
[421190880,1777225877217,-682.76,0.00038356,120]
[421190881,1777225877226,-791.01,0.00038356,120]
[421190882,1777225877235,-663.36,0.00038356,120]
[421190883,1777225877244,-633.82,0.00038356,120]
[421190884,1777225877254,-1118.72,0.00038356,30]
[421190885,1777225877264,-150.0,0.00038356,5]
[421190886,1777225877273,-250.0,0.00038359,5]
[421190887,1777225877283,-350.0,0.00038362,5]
[421190888,1777225877295,-450.0,0.00038364,5]
[421190889,1777225877305,-418.88,0.00038366,120]
[421190890,1777225877314,-418.88,0.00038366,120]
[421190891,1777225877325,-418.88,0.00038366,120]
[421190892,1777225877335,-418.88,0.00038366,120]
[421190893,1777225877345,-418.88,0.00038366,120]
[421190894,1777225877354,-550.0,0.00038367,5]
[421190895,1777225877365,-260.42674366,0.00038369,106]
[421190896,1777225877374,-650.0,0.0003837,5]
[421190897,1777225877383,-504.0,0.00038372,11]
[421190898,1777225877393,-688.49818693,0.00038373,5]
[421190899,1777225877403,-767.12175351,0.00038383,120]
[421190900,1777225877413,-195.21607422,0.00038383,120]
[421190901,1777225877423,-176.39393043,0.00038383,120]
[421190902,1777225877432,-195.21607421,0.00038383,120]
[421190903,1777225877441,-290.40661129,0.00038383,120]
[421190904,1777225877451,-177.79664657,0.00038383,120]
[421190905,1777225877460,-202.55216919,0.00038383,120]
[421190906,1777225877470,-198.30715256,0.00038383,120]
[421190907,1777225877480,-202.55216917,0.00038383,120]
[421190908,1777225877489,-198.30715255,0.00038383,120]
[421190909,1777225877499,-208.31133897,0.00038383,120]
[421190910,1777225877509,-227.87252914,0.00038383,120]
[421190911,1777225877518,-208.31133896,0.00038383,120]
[421190912,1777225877527,-2000.0,0.00038387,120]
[421190913,1777225877538,-3381.23,0.00038398,120]
[421190914,1777225877548,-923.41,0.00038398,120]
[421190915,1777225877559,-1884.2,0.00038398,120]
[421190916,1777225877568,-857.81,0.00038398,120]
[421190917,1777225877579,-830.32816648,0.00038411,30]
[421190918,1777225877589,-396.0,0.00038414,90]
[421190919,1777225877600,-1103.7,0.00038439,30]
[421190920,1777225877610,-184.0,0.00038453,2]
[421190921,1777225877619,-162.0,0.00038476,11]
[421190922,1777225877629,-20698.57518001,0.00038484,2]
[421190923,1777225877639,-500.0,0.00038493,120]
[421190924,1777225877650,-82113.22578441,0.000385,2]
[421190925,1777225877660,-1500.0,0.000385,120]
[421190926,1777225877670,-433.80556048,0.00038502,120]
[421190927,1777225877680,-1577.0,0.00038513,11]
[421190928,1777225877689,-250.0,0.00038532,70]
[421190929,1777225877700,-152.0,0.00038538,120]
[421190930,1777225877710,-647.53,0.00038547,2]
[421190931,1777225877720,-830.32816648,0.00038548,30]
[421190932,1777225877731,-162.0,0.0003857,11]
[421190933,1777225877740,-500.0,0.00038577,120]
[421190934,1777225877750,-5493.01940326,0.00038629,15]
[421190935,1777225877760,-5493.01940325,0.00038629,15]
[421190936,1777225877769,-5493.01940325,0.00038629,15]
[421190937,1777225877778,-5493.01940325,0.00038629,15]
[421190938,1777225877787,-5493.01940325,0.00038629,15]
[421190939,1777225877797,-24381.42418001,0.00038629,10]
[421190940,1777225877807,-50.86961683,0.0003863,15]
[421190941,1777225877817,-580.81,0.0003863,15]
[421190942,1777225877826,-500.0,0.0003863,15]
[421190943,1777225877836,-500.0,0.0003863,15]
[421190944,1777225877845,-992.01,0.0003863,15]
[421190945,1777225877855,-2029.26,0.0003863,15]
[421190946,1777225877864,-500.0,0.0003863,15]
[421190947,1777225877874,-936.75,0.0003863,15]
[421190948,1777225877884,-708.16,0.0003863,15]
[421190949,1777225877894,-1285.52,0.0003863,15]
[421190950,1777225877904,-522.0764824,0.0003863,15]
[421190951,1777225877914,-1694.22,0.0003863,15]
[421190952,1777225877924,-500.0,0.0003863,15]
[421190953,1777225877934,-505.88,0.0003863,15]
[421190954,1777225877944,-555.34576631,0.0003863,15]
[421190955,1777225877955,-1154.35,0.0003863,15]
[421190956,1777225877964,-595.92,0.0003863,15]
[421190957,1777225877974,-500.0,0.0003863,15]
[421190958,1777225877983,-500.0,0.0003863,15]
[421190959,1777225877993,-500.0,0.0003863,15]
[421190960,1777225878002,-1069.75,0.0003863,15]
[421190961,1777225878012,-754.46,0.0003863,15]
[421190962,1777225878022,-667.16,0.0003863,15]
[421190963,1777225878033,-945.6,0.0003863,15]
[421190964,1777225878042,-500.0,0.0003863,15]
[421190965,1777225878052,-500.0,0.0003863,15]
[421190966,1777225878062,-696.96,0.0003863,15]
[421190967,1777225878072,-676.72,0.0003863,15]
[421190968,1777225878082,-821.49,0.0003863,15]
[421190969,1777225878092,-951.98,0.0003863,15]
[421190970,1777225878101,-991.13,0.0003863,15]
[421190971,1777225878111,-562.6,0.0003863,15]
[421190972,1777225878120,-500.0,0.0003863,15]
[421190973,1777225878130,-484.86674318,0.0003863,15]
[421190974,1777225878140,-534.38,0.0003863,15]
[421190975,1777225878150,-880.94,0.0003863,15]
[421190976,1777225878313,-500.0,0.0003863,15]
[421190977,1777225878330,-500.0,0.0003863,15]
[421190978,1777225878340,-559.83,0.0003863,15]
[421190979,1777225878350,-500.0,0.0003863,15]
[421190980,1777225878360,-500.0,0.0003863,15]
[421190981,1777225878369,-500.0,0.0003863,15]
[421190982,1777225878379,-1922.83,0.0003863,15]
[421190983,1777225878388,-1246.97,0.0003863,15]
[421190984,1777225878398,-500.0,0.0003863,15]
[421190985,1777225878408,-500.0,0.0003863,15]
[421190986,1777225878418,-1103.63,0.0003863,15]
[421190987,1777225878428,-500.0,0.0003863,15]
[421190988,1777225878438,-1473.44,0.0003863,15]
[421190989,1777225878447,-500.0,0.0003863,15]
[421190990,1777225878458,-1007.38,0.0003863,15]
[421190991,1777225878467,-586.05977705,0.0003863,15]
[421190992,1777225878477,-500.0,0.0003863,15]
[421190993,1777225878486,-1056.97,0.0003863,15]
[421190994,1777225878496,-500.0,0.0003863,15]
[421190995,1777225878506,-1365.11,0.0003863,15]